bitfinex/quotes_SOLUSD_20241117
["timestamp","ask_amount","ask_price","bid_price","bid_amount"]
[1731818120945,0.4770528,234.23,234.17,36.23085782]
[1731818121146,0.4770528,234.23,234.08,36.23085782]
[1731818121147,0.4770528,234.23,234.21,36.23085782]
[1731818121543,0.4770528,234.23,234.22,0.85357388]
[1731818121749,0.4770528,234.23,234.21,36.23085782]
[1731818122131,0.4770528,234.23,234.22,0.85354351]
[1731818122751,0.4770528,234.23,234.21,36.23085782]
[1731818124033,0.4770528,234.23,234.15,36.23085782]
[1731818124243,0.4770528,234.23,234.13,36.23085782]
[1731818124455,2.1347,234.22,234.11,36.23085782]
[1731818124634,0.4770528,234.23,234.2,36.23085782]
[1731818124841,12.784,234.43,234.08,36.23085782]
[1731818124842,36.23085782,234.36,234.21,0.85385499]
[1731818125151,0.1,234.31,234.15,36.23085782]
[1731818125464,30.2794,234.38,234.19,0.1]
[1731818125755,2.1331,234.4,234.2,0.85329577]
[1731818125935,2.1331,234.4,234.21,0.1]
[1731818126135,2.1331,234.4,234.22,0.8532253]
[1731818126333,0.4770528,234.46,234.22,0.8532253]
[1731818126334,2.6096528,234.46,234.24,0.1]
[1731818126551,36.23085782,234.45,234.33,36.23085782]
[1731818126854,36.23085782,234.43,234.25,0.85313578]
[1731818127054,36.23085782,234.43,234.31,36.23085782]
[1731818127359,38.79702292,234.45,234.33,36.23085782]
[1731818127532,38.79702292,234.45,234.24,36.23085782]
[1731818127533,0.4334651,234.45,234.35,36.23085782]
[1731818128055,38.36355782,234.44,234.33,36.23085782]
[1731818128234,0.4334651,234.45,234.4,36.23085782]
[1731818128662,0.4334651,234.45,234.44,36.23085782]
[1731818130253,0.4334651,234.45,234.4,36.23085782]
[1731818131238,0.4334651,234.45,234.31,0.85285774]
[1731818131550,0.4334651,234.45,234.38,36.23085782]
[1731818131956,0.4334651,234.45,234.4,36.23085782]
[1731818132247,0.4334651,234.45,234.38,36.23085782]
[1731818132852,0.4334651,234.45,234.42,36.23085782]
[1731818133243,0.4334651,234.45,234.4,36.23085782]
[1731818133957,0.4334651,234.45,234.38,36.23085782]
[1731818134467,0.4334651,234.45,234.4,36.23085782]
[1731818134644,0.4334651,234.45,234.41,0.85277336]
[1731818134843,0.4334651,234.45,234.4,36.23085782]
[1731818135652,36.66432292,234.45,234.34,36.23085782]
[1731818135971,36.66432292,234.45,234.3,0.19812994]
[1731818135972,0.09367462,234.4,234.3,36.23085782]
[1731818136263,36.23085782,234.43,234.32,36.23085782]
[1731818136637,36.23085782,234.43,234.25,0.85320082]
[1731818136638,36.23085782,234.43,234.37,36.23085782]
[1731818136854,0.4334651,234.45,234.42,36.23085782]
[1731818137057,0.4334651,234.45,234.4,36.23085782]
[1731818137242,0.4334651,234.45,234.36,36.23085782]
[1731818138259,0.4334651,234.45,234.38,36.23085782]
[1731818138963,0.4334651,234.45,234.36,36.23085782]
[1731818139761,0.4334651,234.45,234.4,36.23085782]
[1731818140563,0.4334651,234.45,234.38,36.23085782]
[1731818140746,2.5660651,234.45,234.36,36.23085782]
[1731818141049,0.09367462,234.44,234.34,36.23085782]
[1731818141251,36.23085782,234.43,234.32,36.23085782]
[1731818141762,0.4334651,234.45,234.36,36.23085782]
[1731818142663,0.4334651,234.45,234.38,36.23085782]
[1731818143048,0.4334651,234.45,234.4,36.23085782]
[1731818144748,0.4334651,234.45,234.42,36.23085782]
[1731818144953,0.4334651,234.45,234.44,36.23085782]
[1731818145750,0.4334651,234.45,234.42,36.23085782]
[1731818146158,0.4334651,234.45,234.38,36.23085782]
[1731818146351,0.4334651,234.45,234.3,0.1]
[1731818146352,0.4334651,234.45,234.42,36.23085782]
[1731818146877,0.4334651,234.45,234.4,36.23085782]
[1731818147085,0.4334651,234.45,234.38,36.23085782]
[1731818147676,0.4334651,234.45,234.4,36.23085782]
[1731818147856,0.4334651,234.45,234.38,36.23085782]
[1731818149050,0.4334651,234.45,234.33,0.85293089]
[1731818149249,0.4334651,234.45,234.4,36.23085782]
[1731818149460,0.4334651,234.45,234.43,36.23085782]
[1731818149662,0.4334651,234.45,234.44,0.85262262]
[1731818151276,0.4334651,234.45,234.43,36.23085782]
[1731818151575,36.23085782,234.62,234.44,57.46489076]
[1731818151752,36.23085782,234.62,234.51,20.0]
[1731818151956,32.2651,234.63,234.52,36.23085782]
[1731818152168,30.1341,234.63,234.52,36.23085782]
[1731818152378,36.23085782,234.64,234.54,36.23085782]
[1731818152668,38.36165782,234.66,234.54,36.23085782]
[1731818152860,36.23085782,234.68,234.57,20.0]
[1731818153174,36.23085782,234.68,234.56,36.23085782]
[1731818153175,36.23085782,234.66,234.56,36.23085782]
[1731818153367,36.23085782,234.68,234.56,36.23085782]
[1731818153553,36.23085782,234.68,234.58,36.23085782]
[1731818153759,36.23085782,234.7,234.6,36.23085782]
[1731818154070,36.23085782,234.7,234.59,20.0]
[1731818154458,2.2301,234.73,234.6,36.23085782]
[1731818154459,36.23085782,234.72,234.6,36.23085782]
[1731818154660,0.6048871,234.74,234.66,36.23085782]
[1731818154962,0.6048871,234.74,234.68,36.23085782]
[1731818155467,0.6048871,234.74,234.71,36.23085782]
[1731818155659,0.6048871,234.74,234.73,36.23085782]
[1731818155850,0.6048871,234.74,234.71,36.23085782]
[1731818156457,0.63899946,234.92,234.74,20.0]
[1731818156458,29.33574492,234.85,234.74,20.0]
[1731818156778,36.23085782,234.79,234.66,36.23085782]
[1731818156969,36.23085782,234.79,234.67,20.0]
[1731818157277,36.23085782,234.79,234.68,36.23085782]
[1731818157466,36.23085782,234.79,234.66,36.23085782]
[1731818157862,36.23085782,234.81,234.68,36.23085782]
[1731818158063,36.23085782,234.77,234.66,36.23085782]
[1731818158266,36.23085782,234.79,234.66,36.23085782]
[1731818158678,36.23085782,234.77,234.64,36.23085782]
[1731818158978,36.23085782,234.79,234.66,36.23085782]
[1731818159276,2.129,234.85,234.71,36.23085782]
[1731818159457,36.23085782,234.84,234.71,36.23085782]
[1731818159785,36.23085782,234.82,234.71,36.23085782]
[1731818159958,36.23085782,234.82,234.69,36.23085782]
[1731818160160,36.23085782,234.8,234.69,36.23085782]
[1731818160364,36.23085782,234.8,234.67,36.23085782]
[1731818160861,36.23085782,234.74,234.63,36.23085782]
[1731818161069,2.1299,234.75,234.65,36.23085782]
[1731818161458,36.23085782,234.73,234.6,36.23085782]
[1731818161657,0.09367462,234.66,234.56,36.23085782]
[1731818161857,0.09367462,234.66,234.47,12.3014]
[1731818161858,36.23085782,234.65,234.54,36.23085782]
[1731818162272,36.23085782,234.65,234.5,0.85219864]
[1731818162273,0.1,234.71,234.58,36.23085782]
[1731818162484,36.33085782,234.69,234.58,36.23085782]
[1731818162659,0.09367462,234.66,234.56,36.23085782]
[1731818162855,36.23085782,234.67,234.56,36.23085782]
[1731818163271,0.1,234.65,234.56,36.23085782]
[1731818163565,36.23085782,234.63,234.52,36.23085782]
[1731818163776,36.33085782,234.59,234.39,12.8355066]
[1731818163966,36.23085782,234.63,234.51,36.23085782]
[1731818164169,36.23085782,234.61,234.5,36.23085782]
[1731818164365,36.23085782,234.63,234.52,36.23085782]
[1731818164970,36.23085782,234.63,234.43,0.85249558]
[1731818164971,36.23085782,234.61,234.5,36.23085782]
[1731818165169,2.1312,234.6,234.5,36.23085782]
[1731818166180,36.23085782,234.59,234.48,36.23085782]
[1731818167672,2.1314,234.58,234.48,36.23085782]
[1731818168381,36.23085782,234.59,234.49,0.85259502]
[1731818168589,38.36225782,234.59,234.48,36.23085782]
[1731818169270,36.23085782,234.63,234.52,36.23085782]
[1731818169587,18.5726,234.73,234.56,36.23085782]
[1731818169588,38.36145782,234.67,234.56,36.23085782]
[1731818169775,36.23085782,234.71,234.61,20.0]
[1731818169970,32.5816,234.75,234.64,36.23085782]
[1731818170165,36.23085782,234.75,234.65,20.85191066]
[1731818170482,36.23085782,234.77,234.67,20.0]
[1731818170690,36.23085782,234.79,234.69,20.0]
[1731818171188,36.23085782,234.77,234.67,20.85174853]
[1731818171364,36.23085782,234.75,234.67,0.85174853]
[1731818171572,36.23085782,234.77,234.67,20.0]
[1731818171879,2.1293,234.82,234.67,20.0]
[1731818172079,36.23085782,234.76,234.68,1.05822282]
[1731818172376,36.23085782,234.7,234.6,36.23085782]
[1731818172577,36.23085782,234.7,234.58,36.23085782]
[1731818172769,36.23085782,234.68,234.58,36.23085782]
[1731818172969,36.23085782,234.7,234.59,0.85211692]
[1731818173176,36.23085782,234.72,234.6,36.23085782]
[1731818173375,36.23085782,234.7,234.59,0.85211692]
[1731818173888,36.23085782,234.72,234.6,36.23085782]
[1731818174060,36.23085782,234.72,234.61,0.85202106]
[1731818174569,36.23085782,234.72,234.55,0.1]
[1731818174570,36.23085782,234.63,234.47,12.8355066]
[1731818174889,36.23085782,234.65,234.53,36.23085782]
[1731818175077,36.23085782,234.59,234.42,12.9355066]
[1731818175395,36.23085782,234.59,234.48,36.23085782]
[1731818175564,0.1,234.66,234.48,36.23085782]
[1731818175565,36.23085782,234.61,234.48,36.23085782]
[1731818175766,36.23085782,234.61,234.5,36.23085782]
[1731818176270,0.09367462,234.64,234.51,0.85243909]
[1731818176492,36.23085782,234.63,234.52,36.23085782]
[1731818177275,36.23085782,234.61,234.51,0.85239681]
[1731818177473,36.23085782,234.59,234.48,36.23085782]
[1731818177675,36.23085782,234.61,234.5,36.23085782]
[1731818177877,38.36185782,234.63,234.51,0.85248412]
[1731818178389,36.23085782,234.63,234.52,36.23085782]
[1731818178589,36.23085782,234.65,234.54,36.23085782]
[1731818179173,36.23085782,234.63,234.52,36.23085782]
[1731818179878,36.23085782,234.61,234.5,36.23085782]
[1731818180992,8.19549946,234.69,234.52,36.23085782]
[1731818180993,36.23085782,234.63,234.52,36.23085782]
[1731818181165,0.63899946,234.71,234.59,36.23085782]
[1731818181371,36.23085782,234.71,234.49,12.8355066]
[1731818181570,36.23085782,234.68,234.56,36.23085782]
[1731818181966,36.23085782,234.66,234.54,36.23085782]
[1731818182171,36.23085782,234.6,234.5,36.23085782]
[1731818182372,36.23085782,234.62,234.5,36.23085782]
[1731818182594,36.86985728,234.64,234.52,36.23085782]
[1731818182904,0.09367462,234.63,234.52,36.23085782]
[1731818183387,0.09367462,234.57,234.46,36.23085782]
[1731818183565,36.23085782,234.56,234.44,36.23085782]
[1731818183768,36.23085782,234.58,234.46,36.23085782]
[1731818184187,36.23085782,234.58,234.48,36.23085782]
[1731818184390,5.4273,234.64,234.4,36.23085782]
[1731818184391,36.23085782,234.66,234.55,36.23085782]
[1731818184773,5.3249,234.75,234.51,36.23085782]
[1731818184774,36.23085782,234.64,234.51,36.23085782]
[1731818185085,0.09367462,234.59,234.49,36.23085782]
[1731818185294,38.36235782,234.58,234.45,36.23085782]
[1731818185591,0.09367462,234.53,234.41,36.23085782]
[1731818186095,0.19367462,234.53,234.41,36.23085782]
[1731818186293,0.19367462,234.53,234.43,36.23085782]
[1731818186495,0.09367462,234.53,234.43,36.23085782]
[1731818187098,0.09367462,234.53,234.31,36.23085782]
[1731818187099,0.21916462,234.44,234.31,36.23085782]
[1731818187391,0.21916462,234.44,234.31,0.107388]
[1731818187392,36.23085782,234.33,234.31,0.107388]
[1731818187590,36.23085782,234.33,234.18,36.23085782]
[1731818187591,0.98365408,234.32,234.18,36.23085782]
[1731818187797,0.98365408,234.32,234.08,25.4394955]
[1731818187798,36.23085782,234.25,234.16,36.23085782]
[1731818188005,36.23085782,234.25,234.05,12.8355066]
[1731818188306,36.23085782,234.25,233.86,24.27530462]
[1731818188307,0.25098,234.13,233.88,12.8355066]
[1731818188481,0.35098,234.16,233.94,12.8355066]
[1731818188482,0.25098,234.16,233.94,12.8355066]
[1731818189072,36.23085782,233.98,233.9,12.8355066]
[1731818189272,0.73899946,234.15,233.95,12.8355066]
[1731818189273,36.23085782,234.03,233.95,12.8355066]
[1731818189578,36.23085782,233.99,233.92,12.8355066]
[1731818189982,36.23085782,234.08,233.92,12.8355066]
[1731818189983,36.23085782,233.97,233.92,12.8355066]
[1731818190178,36.23085782,233.99,233.92,12.8355066]
[1731818190478,36.23085782,234.08,233.88,12.8355066]
[1731818190479,36.23085782,233.97,233.88,12.8355066]
[1731818190876,36.23085782,234.01,233.94,12.8355066]
[1731818191081,36.23085782,234.03,233.95,0.85443166]
[1731818191283,36.23085782,234.05,233.97,12.8355066]
[1731818191474,36.23085782,234.09,233.98,37.08515585]
[1731818191685,36.23085782,234.05,233.94,36.23085782]
[1731818192371,36.23085782,234.05,233.92,49.06636442]
[1731818192571,36.23085782,234.03,233.92,49.06636442]
[1731818192772,36.23085782,234.07,233.96,36.23085782]
[1731818193082,36.23085782,234.04,233.95,23.776884]
[1731818193396,36.23085782,234.0,233.88,49.06636442]
[1731818193588,36.23085782,233.98,233.86,36.23085782]
[1731818194486,36.23085782,233.96,233.85,24.8397066]
[1731818194792,0.63899946,234.07,233.84,0.4997889]
[1731818194793,36.23085782,233.92,233.84,0.4997889]
[1731818195099,36.23085782,233.94,233.85,0.85486742]
[1731818195404,0.63899946,234.03,233.87,36.23085782]
[1731818195696,36.23085782,234.13,234.01,36.23085782]
[1731818195899,0.73899946,234.12,233.88,12.8355066]
[1731818196105,0.09367462,234.09,233.86,0.1]
[1731818196301,0.73267408,234.09,233.88,12.8355066]
[1731818196595,0.63899946,234.12,233.89,0.85450009]
[1731818196785,2.1357,234.11,233.89,0.85450009]
[1731818196989,36.23085782,234.05,233.94,36.23085782]
[1731818197577,36.23085782,234.09,233.98,36.23085782]
[1731818197910,0.63899946,234.2,234.07,36.23085782]
[1731818198103,36.23085782,234.19,234.09,36.23085782]
[1731818198278,36.23085782,234.15,234.04,36.23085782]
[1731818198603,36.23085782,234.05,233.92,23.776884]
[1731818198900,36.23085782,234.07,233.95,36.23085782]
[1731818199101,36.23085782,234.05,233.93,36.23085782]
[1731818199398,36.23085782,234.07,233.97,36.23085782]
[1731818199588,36.23085782,234.11,233.99,36.23085782]
[1731818199783,36.23085782,234.15,234.03,36.23085782]
[1731818199984,36.23085782,234.15,234.05,36.23085782]
[1731818200509,36.23085782,234.15,234.03,36.23085782]
[1731818200803,36.23085782,234.1,233.99,36.23085782]
[1731818201188,36.23085782,234.12,234.01,36.23085782]
[1731818201386,36.23085782,234.14,234.03,36.23085782]
[1731818201594,32.1766,234.22,234.1,36.23085782]
[1731818201595,0.63899946,234.21,234.1,36.23085782]
[1731818201794,32.1766,234.22,234.12,36.23085782]
[1731818201997,36.23085782,234.2,234.07,36.23085782]
[1731818202200,36.23085782,234.24,234.12,23.776884]
[1731818202407,36.23085782,234.24,234.14,36.23085782]
[1731818202612,36.23085782,234.22,234.12,36.23085782]
[1731818202783,36.23085782,234.24,234.11,36.23085782]
[1731818202979,36.23085782,234.26,234.14,36.23085782]
[1731818203193,36.23085782,234.24,234.14,36.23085782]
[1731818203487,36.23085782,234.24,234.12,36.23085782]
[1731818204086,36.23085782,234.22,234.12,36.23085782]
[1731818204286,36.23085782,234.22,234.11,23.776884]
[1731818204499,36.23085782,234.22,234.1,36.23085782]
[1731818204500,36.23085782,234.18,234.06,36.23085782]
[1731818204811,36.23085782,234.2,234.08,36.23085782]
[1731818205101,36.23085782,234.22,234.11,36.23085782]
[1731818205283,36.23085782,234.16,234.05,36.23085782]
[1731818206105,36.23085782,234.18,234.07,36.23085782]
[1731818206403,36.23085782,234.2,234.09,36.23085782]
[1731818207184,36.23085782,234.16,234.05,36.23085782]
[1731818207406,36.23085782,234.16,234.06,0.26]
[1731818208196,36.23085782,234.14,234.06,0.26]
[1731818208407,36.23085782,234.12,234.06,0.26]
[1731818209116,36.23085782,234.08,234.02,0.26]
[1731818209310,36.23085782,234.08,233.98,36.23085782]
[1731818209495,36.23085782,234.12,234.02,36.23085782]
[1731818209884,36.23085782,234.06,233.95,36.23085782]
[1731818211603,36.23085782,234.1,233.99,36.23085782]
[1731818211900,0.63899946,234.14,234.05,36.23085782]
[1731818212202,36.23085782,234.12,234.01,36.23085782]
[1731818212412,36.23085782,234.14,234.03,36.23085782]
[1731818212915,36.23085782,234.08,233.97,36.23085782]
[1731818213799,36.23085782,234.06,233.93,37.08526399]
[1731818213989,36.23085782,234.06,233.95,36.23085782]
[1731818214190,36.23085782,234.06,233.93,0.85440617]
[1731818214404,2.77429946,234.15,233.9,36.23085782]
[1731818214405,36.23085782,234.02,233.9,36.23085782]
[1731818214712,36.23085782,234.02,233.86,25.3373066]
[1731818214713,36.23085782,234.04,233.94,36.23085782]
[1731818215599,36.23085782,234.04,233.92,36.23085782]
[1731818216392,36.23085782,234.06,233.94,49.06636442]
[1731818216597,36.23085782,234.1,233.98,36.23085782]
[1731818216796,36.23085782,234.14,234.02,36.23085782]
[1731818217200,2.1352,234.17,233.98,36.23085782]
[1731818217201,36.23085782,234.1,233.98,36.23085782]
[1731818218707,36.23085782,234.08,233.96,36.23085782]
[1731818220717,36.23085782,234.12,234.0,36.23085782]
[1731818220892,36.23085782,234.08,233.98,36.23085782]
[1731818221292,36.23085782,234.12,234.0,36.23085782]
[1731818221604,36.23085782,234.12,234.02,36.23085782]
[1731818221798,36.23085782,234.12,234.0,36.23085782]
[1731818222301,0.63899946,234.16,233.95,0.85427289]
[1731818222302,36.23085782,234.14,234.02,36.23085782]
[1731818222509,38.36635782,234.14,234.02,36.23085782]
[1731818222705,0.63899946,234.16,234.09,36.23085782]
[1731818222907,36.23085782,234.21,234.09,36.23085782]
[1731818224095,2.77339946,234.25,234.09,36.23085782]
[1731818224096,36.23085782,234.2,234.09,36.23085782]
[1731818224305,36.23085782,234.18,234.07,36.23085782]
[1731818224895,36.23085782,234.14,234.03,36.23085782]
[1731818225093,36.23085782,234.12,234.01,36.23085782]
[1731818225499,36.23085782,234.16,234.05,36.23085782]
[1731818225808,36.23085782,234.14,234.03,36.23085782]
[1731818226595,36.23085782,234.16,234.05,36.23085782]
[1731818227006,36.23085782,234.18,234.07,36.23085782]
[1731818227501,0.63899946,234.25,234.07,36.23085782]
[1731818227702,36.23085782,234.21,234.1,36.23085782]
[1731818229135,38.36565782,234.21,234.1,36.23085782]
[1731818229505,36.23085782,234.17,234.06,36.23085782]
[1731818229920,36.23085782,234.19,234.08,36.23085782]
[1731818230223,36.23085782,234.17,234.06,36.23085782]
[1731818231001,2.1351,234.18,234.04,36.23085782]
[1731818231002,36.23085782,234.15,234.04,36.23085782]
[1731818231798,36.23085782,234.07,233.96,36.23085782]
[1731818232005,36.23085782,234.05,233.94,36.23085782]
[1731818232503,36.23085782,234.01,233.92,36.23085782]
[1731818232697,36.23085782,234.01,233.85,13.57868287]
[1731818232698,36.23085782,234.01,233.9,36.23085782]
[1731818232904,22.04371968,233.97,233.86,22.04371968]
[1731818233704,22.04371968,233.93,233.84,22.54350858]
[1731818233920,22.04371968,233.89,233.84,0.4997889]
[1731818234130,22.04371968,233.87,233.84,0.4997889]
[1731818234436,0.1,233.95,233.74,0.164178]
[1731818234437,0.1,233.82,233.74,0.164178]
[1731818234620,22.04371968,233.75,233.61,22.04371968]
[1731818234930,35.90619802,233.75,233.66,35.90619802]
[1731818235136,35.90619802,233.8,233.71,35.90619802]
[1731818235303,0.76448946,233.79,233.59,1.35547142]
[1731818235504,0.63899946,233.79,233.59,1.35547142]
[1731818235805,0.21916462,233.82,233.59,1.35547142]
[1731818236016,0.19367462,233.79,233.59,0.4997889]
[1731818236306,35.90619802,233.72,233.62,35.90619802]
[1731818236528,35.90619802,233.74,233.64,35.90619802]
[1731818238026,35.90619802,233.72,233.62,35.90619802]
[1731818238726,35.90619802,233.67,233.59,0.4997889]
[1731818238931,35.90619802,233.67,233.53,12.8355066]
[1731818238932,30.5039,233.63,233.55,35.90619802]
[1731818239102,35.90619802,233.68,233.59,35.90619802]
[1731818239503,35.90619802,233.64,233.45,12.8355066]
[1731818239926,35.90619802,233.64,233.54,35.90619802]
[1731818240132,35.90619802,233.66,233.56,35.90619802]
[1731818240425,35.90619802,233.62,233.52,35.90619802]
[1731818240603,35.99987264,233.64,233.52,35.90619802]
[1731818240807,0.63899946,233.63,233.52,35.95798912]
[1731818241202,35.90619802,233.62,233.52,35.95798912]
[1731818241426,35.90619802,233.57,233.52,0.0517911]
[1731818241626,0.63899946,233.56,233.52,0.0517911]
[1731818241833,35.90619802,233.53,233.52,0.0517911]
[1731818242126,36.54519748,233.59,233.52,0.0517911]
[1731818242310,35.90619802,233.59,233.52,0.0517911]
[1731818242514,35.90619802,233.61,233.52,0.0517911]
[1731818242926,35.90619802,233.63,233.53,35.90619802]
[1731818243606,35.90619802,233.65,233.55,35.90619802]
[1731818243808,12.772,233.7,233.52,0.0517911]
[1731818243809,12.772,233.7,233.62,35.90619802]
[1731818244027,35.90619802,233.71,233.6,35.90619802]
[1731818244621,35.90619802,233.71,233.62,35.90619802]
[1731818244814,35.90619802,233.71,233.6,35.90619802]
[1731818245728,35.90619802,233.66,233.56,35.90619802]
[1731818245937,35.90619802,233.66,233.54,35.90619802]
[1731818246128,35.90619802,233.66,233.56,35.90619802]
[1731818246528,35.90619802,233.59,233.52,0.0517911]
[1731818246718,35.90619802,233.54,233.52,0.0517911]
[1731818247127,36.54519748,233.56,233.52,0.0517911]
[1731818247412,13.2111,233.59,233.52,0.0517911]
[1731818247613,35.90619802,233.62,233.52,35.95798912]
[1731818247835,21.67780181,233.81,233.52,35.95798912]
[1731818247836,8.519938,233.85,233.66,12.8355066]
[1731818248135,6.67790873,233.84,233.79,35.90619802]
[1731818248643,35.90619802,233.88,233.75,35.90619802]
[1731818249135,35.90619802,233.86,233.75,35.90619802]
[1731818249336,35.90619802,233.84,233.71,35.90619802]
[1731818249512,35.90619802,233.88,233.75,35.90619802]
[1731818249944,35.90619802,233.86,233.75,35.90619802]
[1731818250311,35.90619802,233.88,233.75,35.90619802]
[1731818250537,32.7487,233.98,233.87,35.90619802]
[1731818250721,2.1362,234.06,233.79,0.1]
[1731818250722,2.1362,234.06,233.95,35.90619802]
[1731818250916,35.90619802,234.07,233.95,35.90619802]
[1731818251119,0.2,234.05,233.87,35.90619802]
[1731818251317,0.1,234.03,233.87,35.90619802]
[1731818251543,35.90619802,233.99,233.87,35.90619802]
[1731818252130,38.04309802,233.99,233.87,35.90619802]
[1731818253223,38.04309802,233.99,233.78,12.8355066]
[1731818253224,35.90619802,233.95,233.83,35.90619802]
[1731818253928,0.09367462,233.94,233.83,35.90619802]
[1731818254135,0.09367462,233.94,233.79,35.90619802]
[1731818254136,35.90619802,233.89,233.79,35.90619802]
[1731818254445,2.1376,233.9,233.79,35.90619802]
[1731818254738,2.1374,233.93,233.83,35.90619802]
[1731818254940,0.12549,233.96,233.87,35.90619802]
[1731818255122,0.12549,233.96,233.76,48.74170462]
[1731818255123,38.04279802,234.01,233.89,35.90619802]
[1731818255438,2.1366,234.01,233.89,35.90619802]
[1731818255743,35.90619802,234.0,233.89,35.90619802]
[1731818256147,45.4217,234.08,233.99,35.90619802]
[1731818256442,32.7487,234.08,234.04,35.90619802]
[1731818256620,32.7487,234.08,234.0,35.90619802]
[1731818257234,32.7487,234.08,234.02,35.90619802]
[1731818257434,2.1353,234.15,234.04,35.90619802]
[1731818257744,36.00619802,234.14,234.01,35.90619802]
[1731818257933,0.09367462,234.13,234.01,35.90619802]
[1731818258237,2.1355,234.13,234.01,35.90619802]
[1731818258936,0.1,234.11,233.99,35.90619802]
[1731818259445,2.1355,234.13,234.01,35.90619802]
[1731818259733,35.90619802,234.12,234.01,35.90619802]
[1731818259946,2.1355,234.13,234.01,35.90619802]
[1731818260928,2.1355,234.13,234.03,35.90619802]
[1731818261447,35.90619802,234.09,233.97,35.90619802]
[1731818261624,35.90619802,234.09,233.92,12.8355066]
[1731818261625,0.1,234.1,233.95,35.90619802]
[1731818261827,0.1,234.07,233.97,35.90619802]
[1731818262022,0.1,234.07,233.85,17.079487]
[1731818262023,0.1,234.04,233.95,35.90619802]
[1731818262342,38.04239802,234.05,233.93,35.90619802]
[1731818262731,2.1362,234.05,233.96,35.90619802]
[1731818264430,38.04239802,234.05,233.93,35.90619802]
[1731818264632,0.22549,234.04,233.95,35.90619802]
[1731818264830,0.22549,234.04,233.84,12.8355066]
[1731818264831,0.22549,234.04,233.93,35.90619802]
[1731818265043,0.22549,234.04,233.95,35.90619802]
[1731818265044,0.1,234.04,233.95,35.90619802]
[1731818266139,0.1,234.01,233.93,35.90619802]
[1731818266943,2.1362,234.06,234.0,35.90619802]
[1731818267322,2.1362,234.06,233.94,0.85472473]
[1731818267323,2.1362,234.06,233.98,35.90619802]
[1731818268445,2.1362,234.06,234.0,35.90619802]
[1731818269141,2.1362,234.06,234.02,35.90619802]
[1731818269347,2.1362,234.06,234.0,35.90619802]
[1731818270126,2.1362,234.06,233.98,35.90619802]
[1731818270324,2.1362,234.06,233.87,12.8355066]
[1731818270325,2.1362,234.06,234.0,35.90619802]
[1731818270935,2.1362,234.06,233.98,35.90619802]
[1731818271257,2.1362,234.06,234.02,35.90619802]
[1731818272049,2.1362,234.06,234.0,35.90619802]
[1731818272547,2.1363,234.04,234.0,35.90619802]
[1731818273739,0.1,234.07,234.0,35.90619802]
[1731818273929,2.1362,234.06,234.0,35.90619802]
[1731818275058,2.1362,234.06,233.98,35.90619802]
[1731818276026,35.99987264,234.04,233.94,35.90619802]
[1731818276233,0.1,234.05,234.0,35.90619802]
[1731818276448,2.1362,234.06,234.0,35.90619802]
[1731818276646,2.1362,234.06,233.98,35.90619802]
[1731818277853,0.09367462,234.05,233.98,35.90619802]
[1731818278347,2.2363,234.04,233.94,35.90619802]
[1731818278549,2.2363,234.04,233.96,35.90619802]
[1731818279353,2.1363,234.04,233.96,35.90619802]
[1731818279547,2.2363,234.04,233.98,35.90619802]
[1731818279739,2.1363,234.04,234.0,35.90619802]
[1731818279938,2.1363,234.04,233.92,35.90619802]
[1731818279939,2.1363,234.04,233.98,35.90619802]
[1731818280336,38.04249802,234.04,233.94,35.90619802]
[1731818280552,0.1,234.02,233.94,35.90619802]
[1731818280938,0.1,234.0,233.94,35.90619802]
[1731818281254,2.1372,233.95,233.84,35.90619802]
[1731818281441,35.90619802,233.92,233.84,35.90619802]
[1731818282033,35.90619802,233.94,233.84,35.90619802]
[1731818282638,35.90619802,233.9,233.75,20.0]
[1731818282838,22.06974893,233.88,233.78,22.06974893]
[1731818283065,22.06974893,233.86,233.76,22.06974893]
[1731818283555,22.06974893,233.84,233.74,22.06974893]
[1731818283861,22.06974893,233.82,233.72,22.06974893]
[1731818284043,22.06974893,233.8,233.7,22.06974893]
[1731818284753,0.19367462,233.83,233.71,35.88667528]
[1731818284754,35.88667528,233.81,233.71,35.88667528]
[1731818284958,35.1898,233.8,233.71,35.88667528]
[1731818285163,35.1898,233.8,233.56,0.1]
[1731818285164,0.1,233.64,233.55,0.0517911]
[1731818285462,35.88667528,233.59,233.55,0.0517911]
[1731818285659,33.0513,233.74,233.55,0.0517911]
[1731818285959,2.1385,233.8,233.61,12.8355066]
[1731818286140,0.09367462,233.79,233.55,12.8872977]
[1731818286347,0.34465462,233.75,233.55,0.0517911]
[1731818286541,0.1,233.74,233.55,0.0517911]
[1731818286747,35.88667528,233.77,233.66,35.88667528]
[1731818287063,2.23257462,233.76,233.66,35.88667528]
[1731818287247,35.88667528,233.69,233.55,0.0517911]
[1731818287455,35.88667528,233.69,233.59,35.88667528]
[1731818288056,35.88667528,233.71,233.59,35.88667528]
[1731818288270,0.25098,233.75,233.55,35.93846638]
[1731818288271,0.34465462,233.64,233.55,35.93846638]